bitfinex/quotes_BTCUSD_20250726
["timestamp","ask_amount","ask_price","bid_price","bid_amount"]
[1753494424333,0.01898438,117390.0,117380.0,1.33301066]
[1753494424502,0.01898438,117390.0,117380.0,1.35560066]
[1753494426161,0.04368438,117390.0,117380.0,1.33301066]
[1753494430373,0.04368438,117390.0,117380.0,1.60041066]
[1753494430580,0.04368438,117390.0,117380.0,1.62300066]
[1753494433068,0.04368438,117390.0,117380.0,1.60041066]
[1753494433469,0.06018438,117390.0,117380.0,1.60041066]
[1753494434027,0.06320438,117390.0,117380.0,1.60041066]
[1753494435231,0.06524438,117390.0,117380.0,1.0303412]
[1753494435444,0.06524438,117390.0,117380.0,1.60041066]
[1753494456063,0.06320438,117390.0,117380.0,1.60041066]
[1753494457923,0.03548438,117390.0,117380.0,1.62300066]
[1753494459007,0.05935438,117390.0,117380.0,1.62300066]
[1753494460418,0.05935438,117390.0,117380.0,1.60041066]
[1753494461234,0.05935438,117390.0,117380.0,1.59929066]
[1753494461677,0.01898438,117390.0,117380.0,1.62188066]
[1753494463068,0.01898438,117390.0,117380.0,1.62399066]
[1753494463750,0.00248438,117390.0,117380.0,1.62399066]
[1753494464605,0.00248438,117390.0,117380.0,1.62188066]
[1753494465032,0.00248438,117390.0,117380.0,1.62399066]
[1753494465776,0.00248438,117390.0,117380.0,1.69143968]
[1753494466012,0.00248438,117390.0,117380.0,1.70793968]
[1753494466232,0.00248438,117390.0,117380.0,1.73351268]
[1753494466450,0.00248438,117390.0,117380.0,1.71701268]
[1753494469255,0.00248438,117390.0,117380.0,1.69143968]
[1753494471012,0.00248438,117390.0,117380.0,2.02647441]
[1753494471257,0.00248438,117390.0,117380.0,1.75763968]
[1753494471573,0.00248438,117390.0,117380.0,1.78321168]
[1753494471999,0.00148438,117390.0,117380.0,1.77721168]
[1753494472345,0.00148438,117390.0,117380.0,1.77921168]
[1753494472543,0.00348438,117390.0,117380.0,1.78721168]
[1753494473743,0.00348438,117390.0,117380.0,1.77101168]
[1753494477588,1e-08,117390.0,117380.0,3.01804941]
[1753494478151,1e-08,117390.0,117380.0,2.96694241]
[1753494478802,1e-08,117390.0,117380.0,2.68190768]
[1753494480288,1e-08,117390.0,117380.0,2.66870768]
[1753494480509,1e-08,117390.0,117380.0,2.34711068]
[1753494480725,1e-08,117390.0,117380.0,2.31301868]
[1753494480933,1e-08,117390.0,117380.0,2.11506868]
[1753494482258,1e-08,117390.0,117380.0,2.08271168]
[1753494482510,1e-08,117390.0,117380.0,2.06651168]
[1753494483463,1e-08,117390.0,117380.0,1.94028468]
[1753494483769,0.05558711,117400.0,117390.0,0.24592722]
[1753494483903,0.05558711,117400.0,117390.0,1.02891671]
[1753494484115,0.05852711,117400.0,117390.0,1.03107671]
[1753494484733,0.05952711,117400.0,117390.0,1.03607671]
[1753494485089,0.06167711,117400.0,117390.0,1.03607671]
[1753494485623,0.06267711,117400.0,117390.0,1.04107671]
[1753494489560,0.06267711,117400.0,117390.0,1.30847671]
[1753494490356,0.06267711,117400.0,117390.0,1.17795671]
[1753494490575,0.06267711,117400.0,117390.0,0.97128198]
[1753494490777,0.06267711,117400.0,117390.0,1.02128198]
[1753494491377,0.06267711,117400.0,117390.0,0.89292198]
[1753494491531,0.06267711,117400.0,117390.0,1.02128198]
[1753494491894,0.06267711,117400.0,117390.0,1.30631671]
[1753494492549,0.06267711,117400.0,117390.0,1.12795671]
[1753494492756,0.06267711,117400.0,117390.0,1.30631671]
[1753494495470,0.06267711,117400.0,117390.0,0.68624725]
[1753494495671,0.06267711,117400.0,117390.0,1.30631671]
[1753494499818,0.06267711,117400.0,117390.0,1.25631671]
[1753494500299,0.06267711,117400.0,117390.0,1.30631671]
[1753494506602,0.06267711,117400.0,117390.0,1.25631671]
[1753494506866,0.06267711,117400.0,117390.0,1.30631671]
[1753494509194,0.06267711,117400.0,117390.0,1.25631671]
[1753494509546,0.06267711,117400.0,117390.0,1.30631671]
[1753494511173,0.06267711,117400.0,117390.0,1.12795671]
[1753494511480,0.07119441,117400.0,117390.0,1.31128198]
[1753494512242,0.07119441,117400.0,117390.0,1.59631671]
[1753494512653,0.07971178,117400.0,117390.0,1.59631671]
[1753494513289,0.07971178,117400.0,117390.0,1.32891671]
[1753494513498,0.07119441,117400.0,117390.0,1.32891671]
[1753494513921,0.07971186,117400.0,117390.0,1.32891671]
[1753494514573,0.07119441,117400.0,117390.0,1.32891671]
[1753494515687,0.07971178,117400.0,117390.0,1.32891671]
[1753494515901,0.07119441,117400.0,117390.0,1.32891671]
[1753494517102,0.06267711,117400.0,117390.0,1.32891671]
[1753494517639,0.07119441,117400.0,117390.0,1.32891671]
[1753494518018,0.07971186,117400.0,117390.0,1.32891671]
[1753494518618,0.07119441,117400.0,117390.0,1.32891671]
[1753494519202,0.07119441,117400.0,117390.0,1.59631671]
[1753494520660,0.07971186,117400.0,117390.0,1.59631671]
[1753494521072,0.07119441,117400.0,117390.0,1.59631671]
[1753494521581,0.07971178,117400.0,117390.0,1.59631671]
[1753494522461,0.09674689,117400.0,117390.0,1.59631671]
[1753494522629,0.09674689,117400.0,117390.0,1.31128198]
[1753494522795,0.09674682,117400.0,117390.0,1.31128198]
[1753494523277,0.09674682,117400.0,117390.0,1.59631671]
[1753494523680,0.08822923,117400.0,117390.0,1.59631671]
[1753494523857,0.07971178,117400.0,117390.0,1.59631671]
[1753494525136,0.0882293,117400.0,117390.0,1.31128198]
[1753494525325,0.0882293,117400.0,117390.0,1.59631671]
[1753494525953,0.0882293,117400.0,117390.0,1.18292198]
[1753494526208,0.0882293,117400.0,117390.0,1.31128198]
[1753494526412,0.1052647,117400.0,117390.0,1.31128198]
[1753494526547,0.09674696,117400.0,117390.0,1.31128198]
[1753494526754,0.1052647,117400.0,117390.0,1.31128198]
[1753494527549,0.10526528,117400.0,117390.0,1.31980015]
[1753494527733,0.0967474,117400.0,117390.0,1.31980015]
[1753494527940,0.0967474,117400.0,117390.0,1.31916015]
[1753494528445,0.08822966,117400.0,117390.0,1.31916015]
[1753494528586,0.08822959,117400.0,117390.0,1.31916015]
[1753494529000,0.079712,117400.0,117390.0,1.31916015]
[1753494529477,0.07119448,117400.0,117390.0,1.31916015]
[1753494529703,0.079712,117400.0,117390.0,1.60419488]
[1753494529901,0.07119448,117400.0,117390.0,1.60419488]
[1753494530156,0.07971193,117400.0,117390.0,1.60419488]
[1753494530576,0.08822952,117400.0,117390.0,1.60419488]
[1753494530792,0.08822945,117400.0,117390.0,1.60419488]
[1753494531036,0.08822945,117400.0,117390.0,1.33679488]
[1753494531691,0.07971193,117400.0,117390.0,1.36179229]
[1753494533715,0.07971193,117400.0,117390.0,1.07675756]
[1753494534039,0.07971193,117400.0,117390.0,1.08512239]
[1753494535133,0.08822945,117400.0,117390.0,1.37015712]
[1753494535356,0.08822945,117400.0,117390.0,1.08512239]
[1753494535842,0.08822945,117400.0,117390.0,0.66320956]
[1753494536067,0.26710494,117400.0,117390.0,0.68684556]
[1753494536285,0.25858757,117400.0,117390.0,0.68684556]
[1753494536495,0.25858757,117400.0,117390.0,0.51647337]
[1753494536496,0.25007012,117400.0,117390.0,0.51647337]
[1753494536734,0.25007012,117400.0,117390.0,0.69536409]
[1753494537170,0.25007012,117400.0,117390.0,0.68684563]
[1753494537385,0.25007012,117400.0,117390.0,0.69536417]
[1753494537588,0.25007012,117400.0,117390.0,0.71240102]
[1753494538596,0.24907012,117400.0,117390.0,0.70740102]
[1753494538804,0.24907012,117400.0,117390.0,0.42236629]
[1753494539005,0.24907012,117400.0,117390.0,0.70740102]
[1753494539457,0.24807012,117400.0,117390.0,0.70240102]
[1753494539669,0.24807012,117400.0,117390.0,0.70740102]
[1753494539846,0.24907012,117400.0,117390.0,0.71140102]
[1753494540273,0.24907012,117400.0,117390.0,0.4178479]
[1753494540456,0.24907012,117400.0,117390.0,0.70288263]
[1753494541419,0.2405526,117400.0,117390.0,0.51547337]
[1753494541571,0.23203486,117400.0,117390.0,0.50695476]
[1753494541904,0.23203486,117400.0,117390.0,0.51547337]
[1753494543233,0.23203486,117400.0,117390.0,0.69436417]
[1753494543736,0.23203486,117400.0,117390.0,0.70288263]
[1753494543972,0.2405526,117400.0,117390.0,0.71140102]
[1753494544299,0.2405526,117400.0,117390.0,0.70288263]
[1753494544527,0.2405526,117400.0,117390.0,0.71140102]
[1753494544783,0.2405526,117400.0,117390.0,0.71991934]
[1753494545129,0.07871237,117400.0,117390.0,0.71991934]
[1753494545344,0.07871237,117400.0,117390.0,0.71991883]
[1753494545516,0.08723018,117400.0,117390.0,0.71991883]
[1753494546189,0.09574806,117400.0,117390.0,0.71991883]
[1753494550377,0.26610581,117400.0,117390.0,0.71140073]
[1753494550632,0.26610581,117400.0,117390.0,0.71991898]
[1753494554551,0.09574806,117400.0,117390.0,0.71991854]
[1753494554700,0.08723018,117400.0,117390.0,0.71991854]
[1753494555863,0.25758793,117400.0,117390.0,0.69436387]
[1753494556083,0.25758793,117400.0,117390.0,0.70288204]
[1753494556931,0.08723018,117400.0,117390.0,0.70288204]
[1753494557196,0.09574806,117400.0,117390.0,0.70288204]
[1753494560113,0.0978782,117400.0,117390.0,0.70288204]
[1753494560678,0.09574806,117400.0,117390.0,0.70288204]
[1753494561624,0.08723018,117400.0,117390.0,0.71353014]
[1753494562175,0.08723018,117400.0,117390.0,0.42849541]
[1753494562402,0.09574806,117400.0,117390.0,0.71353014]
[1753494562843,0.0978782,117400.0,117390.0,0.71353014]
[1753494563879,0.26823595,117400.0,117390.0,0.69649387]
[1753494564093,0.25758829,117400.0,117390.0,0.69649387]
[1753494567434,0.24055274,117400.0,117390.0,0.68797548]
[1753494568109,0.24055274,117400.0,117390.0,0.69649387]
[1753494568535,0.24055274,117400.0,117390.0,0.70501219]
[1753494570356,0.24055274,117400.0,117390.0,0.57665219]
[1753494571489,0.24055274,117400.0,117390.0,0.58517044]
[1753494574006,0.08722996,117400.0,117390.0,0.59368861]
[1753494574210,0.09787762,117400.0,117390.0,0.59368825]
[1753494574578,0.08935981,117400.0,117390.0,0.59368825]
[1753494578469,0.08935981,117400.0,117390.0,0.30865352]
[1753494578776,0.08935981,117400.0,117390.0,0.59368825]
[1753494579700,0.08935981,117400.0,117390.0,0.30865352]
[1753494579923,0.09787762,117400.0,117390.0,0.30865352]
[1753494580052,0.09787762,117400.0,117390.0,0.59368825]
[1753494580229,0.06380725,117400.0,117390.0,0.59368825]
[1753494580428,0.06167711,117400.0,117390.0,0.59368825]
[1753494580630,0.05952711,117400.0,117390.0,0.59368825]
[1753494581748,0.06804434,117400.0,117390.0,0.59368825]
[1753494581925,0.05952711,117400.0,117390.0,0.59368825]
[1753494586054,0.07017462,117400.0,117390.0,0.59368825]
[1753494586271,0.06165725,117400.0,117390.0,0.59368825]
[1753494586493,0.078692,117400.0,117390.0,0.30865352]
[1753494586708,0.080732,117400.0,117390.0,0.30865352]
[1753494586921,0.080732,117400.0,117390.0,0.59368825]
[1753494587713,0.07221455,117400.0,117390.0,0.59368825]
[1753494587920,0.08073192,117400.0,117390.0,0.59368825]
[1753494588731,0.20909192,117400.0,117390.0,0.59368825]
[1753494588930,0.20696178,117400.0,117390.0,0.59368825]
[1753494589338,0.18992711,117400.0,117390.0,0.59368825]
[1753494589537,0.20696179,117400.0,117390.0,0.59368825]
[1753494589734,0.20198179,117400.0,117390.0,0.59368825]
[1753494591800,0.21049938,117400.0,117390.0,0.59368825]
[1753494592007,0.21049931,117400.0,117390.0,0.59368825]
[1753494593842,0.21901697,117400.0,117390.0,0.59368825]
[1753494593962,0.22202697,117400.0,117390.0,0.59368825]
[1753494594188,0.23054529,117400.0,117390.0,0.59368825]
[1753494595115,0.22202748,117400.0,117390.0,0.59368825]
[1753494596266,0.22406748,117400.0,117390.0,0.59368825]
[1753494598448,0.22406748,117400.0,117390.0,0.58868825]
[1753494598947,0.22406748,117400.0,117390.0,0.58968825]
[1753494599151,0.22306748,117400.0,117390.0,0.58568825]
[1753494599390,0.22406748,117400.0,117390.0,0.58668825]
[1753494603770,0.21554974,117400.0,117390.0,0.58668825]
[1753494604477,0.001,117400.0,117390.0,1.05308298]
[1753494604676,0.001,117400.0,117390.0,1.39308298]
[1753494613958,0.001,117400.0,117390.0,1.66048298]
[1753494615844,0.001,117400.0,117390.0,1.64718298]
[1753494617896,0.001,117400.0,117390.0,1.64503298]
[1753494620077,0.001,117400.0,117390.0,1.63003298]
[1753494620663,0.001,117400.0,117390.0,1.05996352]
[1753494620851,0.001,117400.0,117390.0,1.63003298]
[1753494622149,0.001,117400.0,117390.0,1.60744298]
[1753494622362,0.06269,117400.0,117390.0,1.32027825]
[1753494623415,0.06269,117400.0,117390.0,1.32231825]
[1753494623630,0.06269,117400.0,117390.0,1.32027825]
[1753494624885,0.06269,117400.0,117390.0,0.90692352]
[1753494625011,0.06269,117400.0,117390.0,1.32027825]
[1753494625898,0.0712073,117400.0,117390.0,1.32027825]
[1753494626039,0.07120723,117400.0,117390.0,1.32027825]
[1753494626450,0.06269,117400.0,117390.0,1.32027825]
[1753494626660,0.06269,117400.0,117390.0,1.19195825]
[1753494626898,0.06269,117400.0,117390.0,1.32027825]
[1753494627101,0.07120723,117400.0,117390.0,1.32027825]
[1753494628890,0.06269,117400.0,117390.0,1.32027825]
[1753494632669,0.06269,117400.0,117390.0,1.32236825]
[1753494636581,0.05743,117400.0,117390.0,1.32236825]
[1753494637209,0.06036,117400.0,117390.0,1.32236825]
[1753494637421,0.06036,117400.0,117390.0,1.03733352]
[1753494637632,0.06036,117400.0,117390.0,1.32236825]
[1753494638958,0.06232,117400.0,117390.0,1.32236825]
[1753494639235,0.06232,117400.0,117390.0,1.03733352]
[1753494639452,0.06232,117400.0,117390.0,1.32236825]
[1753494640307,0.06036,117400.0,117390.0,1.34000298]
[1753494640533,0.0167,117400.0,117390.0,1.36259298]
[1753494643161,0.0329,117400.0,117390.0,1.36259298]
[1753494643566,0.0576,117400.0,117390.0,1.36259298]
[1753494643776,0.0329,117400.0,117390.0,1.36259298]
[1753494649458,0.0329,117400.0,117390.0,1.62999298]
[1753494649903,0.0576,117400.0,117390.0,1.62999298]
[1753494650814,0.0576,117400.0,117390.0,1.60740298]
[1753494652177,0.06053,117400.0,117390.0,1.60740298]
[1753494655194,0.0576,117400.0,117390.0,1.26740298]
[1753494659232,0.0576,117400.0,117390.0,0.69733352]
[1753494659434,0.06053,117400.0,117390.0,1.26740298]
[1753494662844,0.06053,117400.0,117390.0,1.29305056]
[1753494669107,0.06265,117400.0,117390.0,1.29305056]
[1753494679712,0.07116723,117400.0,117390.0,1.29305056]
[1753494680319,0.07116723,117400.0,117390.0,1.16473056]
[1753494680639,0.07116723,117400.0,117390.0,1.29305056]
[1753494682745,0.06265,117400.0,117390.0,1.29305056]
[1753494683211,0.07116723,117400.0,117390.0,1.29305056]
[1753494683918,0.06265,117400.0,117390.0,1.29305056]
[1753494688426,0.06265,117400.0,117390.0,1.16473056]
[1753494688628,0.06265,117400.0,117390.0,1.29305056]
[1753494688946,0.07116723,117400.0,117390.0,1.29305056]
[1753494689150,0.06265,117400.0,117390.0,1.29305056]
[1753494689350,0.07116723,117400.0,117390.0,1.29305056]
[1753494689674,0.06265,117400.0,117390.0,1.29305056]
[1753494694304,0.06265,117400.0,117390.0,0.7229811]
[1753494694514,0.06265,117400.0,117390.0,1.29305056]
[1753494696268,0.06265,117400.0,117390.0,0.7229811]
[1753494696487,0.06265,117400.0,117390.0,1.29305056]
[1753494696742,0.06265,117400.0,117390.0,0.81145702]
[1753494696966,0.56412715,117400.0,117390.0,0.08656003]
[1753494697186,0.56199701,117400.0,117390.0,0.00208273]
[1753494698524,0.57944603,117400.0,117390.0,0.00208273]
[1753494698762,0.04854208,117350.0,117340.0,0.85948745]
[1753494698986,0.04206093,117350.0,117340.0,0.65905937]
[1753494699263,0.08632315,117350.0,117340.0,1.0724141]
[1753494699485,0.08632308,117350.0,117340.0,1.0724141]
[1753494699704,0.08632308,117350.0,117340.0,1.0744541]
[1753494699919,0.07780193,117350.0,117340.0,1.0744541]
[1753494700133,0.06928086,117350.0,117340.0,1.0744541]
[1753494700339,0.06928086,117350.0,117340.0,1.08294216]
[1753494700792,0.06428086,117350.0,117340.0,1.08294216]
[1753494701014,0.05576,117350.0,117340.0,1.08294216]
[1753494701240,0.0275,117350.0,117340.0,1.11553216]
[1753494703319,0.08028345,117350.0,117340.0,0.9561341]
[1753494703553,0.07380208,117350.0,117340.0,0.9561341]
[1753494703970,0.06528093,117350.0,117340.0,0.9561341]
[1753494704456,0.05676,117350.0,117340.0,0.9648191]
[1753494705921,0.06528086,117350.0,117340.0,0.9648191]
[1753494706137,0.05676,117350.0,117340.0,0.9648191]
[1753494706611,0.05167,117350.0,117340.0,0.9648191]
[1753494707038,0.05167,117350.0,117340.0,0.9874091]
[1753494710549,0.05167,117350.0,117340.0,0.9648191]
[1753494713654,0.05167,117350.0,117340.0,1.0931791]
[1753494716816,0.0161,117350.0,117340.0,1.1157691]
[1753494717241,0.0161,117350.0,117340.0,0.8483691]
[1753494717438,0.001,117350.0,117340.0,1.49081383]
[1753494717637,0.001,117350.0,117340.0,1.2057791]
[1753494721375,0.001,117350.0,117340.0,0.92074437]
[1753494721593,0.001,117350.0,117340.0,1.1904791]
[1753494722442,0.001,117350.0,117340.0,1.1817941]
[1753494723007,0.001,117350.0,117340.0,1.1971941]
[1753494724327,0.001,117350.0,117340.0,1.2125941]
[1753494724547,0.001,117350.0,117340.0,1.49762883]
[1753494727421,0.001,117350.0,117340.0,1.48222883]
[1753494727996,0.001,117350.0,117340.0,1.49080722]
[1753494729159,0.001,117350.0,117340.0,1.75820722]
[1753494731018,0.001,117350.0,117340.0,1.75609722]
[1753494731227,0.001,117350.0,117340.0,1.74069722]
[1753494738445,0.0175,117350.0,117340.0,1.74069722]
[1753494739424,0.001,117350.0,117340.0,1.74069722]
[1753494742226,0.0175,117350.0,117340.0,1.74069722]
[1753494744236,0.04114,117350.0,117340.0,1.74069722]
[1753494744855,0.04114,117350.0,117340.0,1.45566249]
[1753494745901,0.001,117350.0,117340.0,1.74069722]
[1753494746669,0.0163,117350.0,117340.0,1.74069722]
[1753494749053,0.03994,117350.0,117340.0,1.71810722]
[1753494755525,0.03994,117350.0,117340.0,1.43307249]
[1753494758041,0.03994,117350.0,117340.0,1.30471249]
[1753494758245,0.06139,117350.0,117340.0,1.43103249]
[1753494758463,0.069911,117350.0,117340.0,0.9371068]
[1753494758662,0.09547474,117350.0,117340.0,0.38461658]
[1753494758794,0.32501161,117350.0,117340.0,0.1971276]
[1753494759000,0.30796924,117350.0,117340.0,0.1971276]
[1753494763533,0.2403417,117350.0,117340.0,0.1971276]
[1753494780467,0.23136274,117350.0,117340.0,0.1971276]
[1753494785387,0.36828389,117350.0,117340.0,0.1971276]
[1753494785591,0.36828389,117350.0,117340.0,0.21417201]
[1753494785799,0.36828389,117350.0,117340.0,0.39313889]
[1753494786010,0.36828389,117350.0,117340.0,0.68704533]
[1753494790058,0.36828389,117350.0,117340.0,0.39313889]
[1753494790676,0.35124137,117350.0,117340.0,0.1971276]
[1753494790880,0.63662586,117350.0,117340.0,0.20564984]
[1753494791415,0.71733007,117350.0,117340.0,0.1126503]
[1753494792183,0.71733007,117350.0,117340.0,0.1076503]
[1753494792660,0.72033007,117350.0,117340.0,0.1026503]
[1753494793060,0.71733007,117350.0,117340.0,0.1026503]
[1753494794609,0.72133007,117350.0,117340.0,0.1026503]
[1753494795039,0.73877909,117350.0,117340.0,0.1026503]
[1753494795260,0.74377909,117350.0,117340.0,0.1036503]
[1753494796339,0.73877909,117350.0,117340.0,0.1026503]
[1753494796799,0.4593946,117350.0,117340.0,0.1036503]
[1753494797005,0.74477909,117350.0,117340.0,0.1036503]
[1753494802330,0.4593946,117350.0,117340.0,0.1036503]
[1753494802533,0.66407488,117350.0,117340.0,0.1036503]
[1753494813424,0.21788897,117340.0,117330.0,0.17277418]
[1753494813644,0.21788897,117340.0,117330.0,0.17291989]
[1753494813645,0.24632897,117340.0,117330.0,0.17291989]
[1753494813868,0.33080627,117340.0,117330.0,0.17291989]
[1753494814098,0.61619076,117340.0,117330.0,0.17501989]
[1753494814321,0.38020897,117340.0,117330.0,0.17501989]
[1753494814582,0.37516897,117340.0,117330.0,0.17501989]
[1753494814812,0.66855346,117340.0,117330.0,0.17601989]
[1753494815033,0.63663144,117340.0,117330.0,0.19860989]
[1753494815256,0.48745144,117340.0,117330.0,0.19860989]
[1753494815503,0.35128695,117340.0,117330.0,0.19860989]
[1753494815755,0.63667144,117340.0,117330.0,0.19860989]
[1753494816218,0.33598695,117340.0,117330.0,0.19860989]
[1753494816451,0.62145144,117340.0,117330.0,0.19860989]
[1753494817309,0.63675144,117340.0,117330.0,0.19860989]
[1753494817519,0.74462874,117340.0,117330.0,0.17601989]
[1753494817981,0.74769874,117340.0,117330.0,0.17601989]
[1753494818660,0.46231425,117340.0,117330.0,0.17601989]
[1753494818859,0.74462874,117340.0,117330.0,0.17601989]
[1753494820314,0.74769874,117340.0,117330.0,0.17601989]
[1753494820797,0.74966874,117340.0,117330.0,0.17601989]
[1753494821261,0.46428425,117340.0,117330.0,0.17601989]
[1753494821484,0.74966874,117340.0,117330.0,0.17601989]
[1753494824181,0.72932874,117340.0,117330.0,0.17601989]
[1753494824368,0.44394425,117340.0,117330.0,0.17601989]
[1753494825245,0.72932874,117340.0,117330.0,0.17601989]
[1753494825633,0.73239874,117340.0,117330.0,0.17601989]
[1753494826486,0.73436874,117340.0,117330.0,0.17601989]
[1753494826691,0.74996874,117340.0,117330.0,0.17601989]
[1753494828854,0.46458425,117340.0,117330.0,0.17601989]
[1753494829085,0.74996874,117340.0,117330.0,0.17601989]
[1753494829700,0.46458425,117340.0,117330.0,0.17601989]
[1753494829888,0.74996874,117340.0,117330.0,0.17601989]
[1753494830650,0.73436874,117340.0,117330.0,0.17601989]
[1753494830793,0.44898425,117340.0,117330.0,0.17601989]
[1753494830991,0.73436874,117340.0,117330.0,0.17601989]
[1753494832748,0.44898425,117340.0,117330.0,0.17601989]
[1753494832954,0.75086874,117340.0,117330.0,0.17601989]
[1753494833148,0.46548425,117340.0,117330.0,0.17601989]
[1753494833599,0.75086874,117340.0,117330.0,0.17601989]
[1753494836264,0.0465,117340.0,117330.0,0.44800213]
[1753494836465,0.36939926,117340.0,117330.0,0.7333867]
[1753494836674,0.36726912,117340.0,117330.0,0.7333867]
[1753494836852,0.36069099,117340.0,117330.0,0.74190937]
[1753494837066,0.36376099,117340.0,117330.0,0.74190937]
[1753494837495,0.37228265,117340.0,117330.0,0.46504748]
[1753494838101,0.75877091,117340.0,117330.0,0.25839719]
[1753494840255,0.47338642,117340.0,117330.0,0.25839719]
[1753494840501,0.75877091,117340.0,117330.0,0.25839719]
[1753494842498,0.47338642,117340.0,117330.0,0.25839719]
[1753494842704,0.75877091,117340.0,117330.0,0.25839719]
[1753494845275,0.47338642,117340.0,117330.0,0.25839719]
[1753494845485,0.75877091,117340.0,117330.0,0.25839719]
[1753494845812,0.67429361,117340.0,117330.0,0.25839719]
[1753494847688,0.66925361,117340.0,117330.0,0.25839719]
[1753494847901,0.66925361,117340.0,117330.0,0.17391989]
[1753494849113,0.66925361,117340.0,117330.0,0.16663079]
[1753494852360,0.68670263,117340.0,117330.0,0.16663079]
[1753494852575,0.48579544,117340.0,117330.0,0.16663079]
[1753494852811,0.77622993,117340.0,117330.0,0.16663079]
[1753494853359,0.49084544,117340.0,117330.0,0.16663079]
[1753494853558,0.77622993,117340.0,117330.0,0.16663079]
[1753494854393,0.49084544,117340.0,117330.0,0.16663079]
[1753494854591,0.77622993,117340.0,117330.0,0.16663079]
[1753494855072,0.49084544,117340.0,117330.0,0.16663079]
[1753494855493,0.77622993,117340.0,117330.0,0.16663079]
[1753494855734,0.49084544,117340.0,117330.0,0.16663079]
[1753494855930,0.77622993,117340.0,117330.0,0.16663079]
[1753494867143,0.49084544,117340.0,117330.0,0.16663079]
[1753494867361,0.77622993,117340.0,117330.0,0.16663079]
[1753494868420,0.49084544,117340.0,117330.0,0.16663079]
[1753494868679,0.77622993,117340.0,117330.0,0.16663079]
[1753494878320,0.49084544,117340.0,117330.0,0.16663079]
[1753494878524,0.77622993,117340.0,117330.0,0.16663079]
[1753494880349,0.49084544,117340.0,117330.0,0.16663079]
[1753494880550,0.77622993,117340.0,117330.0,0.16663079]
[1753494887055,0.49084544,117340.0,117330.0,0.16663079]
[1753494887250,0.77622993,117340.0,117330.0,0.16663079]
[1753494899878,0.49084544,117340.0,117330.0,0.16663079]
[1753494900082,0.77622993,117340.0,117330.0,0.16663079]
[1753494903450,0.77622993,117340.0,117330.0,0.16652822]
[1753494906986,0.49084544,117340.0,117330.0,0.16652822]
[1753494907212,0.39668912,117340.0,117330.0,0.16867822]
[1753494907470,0.39668912,117340.0,117330.0,0.19126822]
[1753494907881,0.72695361,117340.0,117330.0,0.16652822]
[1753494908055,0.65695361,117340.0,117330.0,0.16652822]
[1753494908268,0.74143091,117340.0,117330.0,0.16652822]
[1753494908483,0.72603091,117340.0,117330.0,0.16652822]
[1753494911770,0.44064642,117340.0,117330.0,0.16867822]
[1753494911930,0.47124642,117340.0,117330.0,0.16652822]
[1753494912129,0.75663091,117340.0,117330.0,0.16652822]
[1753494912772,0.74163091,117340.0,117330.0,0.16652822]
[1753494913878,0.45624642,117340.0,117330.0,0.16652822]
[1753494914082,0.74163091,117340.0,117330.0,0.16652822]
[1753494914284,0.74123091,117340.0,117330.0,0.16652822]
[1753494914488,0.45584642,117340.0,117330.0,0.16652822]
[1753494914692,0.74123091,117340.0,117330.0,0.16652822]
[1753494915455,0.61003091,117340.0,117330.0,0.16652822]
[1753494915660,0.74111091,117340.0,117330.0,0.16652822]
[1753494916490,0.74111091,117340.0,117330.0,0.16867822]
[1753494916900,0.61003091,117340.0,117330.0,0.16867822]
[1753494917100,0.74103091,117340.0,117330.0,0.16867822]
[1753494917908,0.74103091,117340.0,117330.0,0.16652822]
[1753494920044,0.75653091,117340.0,117330.0,0.16652822]
[1753494921141,0.47114642,117340.0,117330.0,0.16652822]
[1753494921336,0.75653091,117340.0,117330.0,0.16652822]
[1753494924480,0.47114642,117340.0,117330.0,0.16652822]
[1753494924952,0.75653091,117340.0,117330.0,0.16652822]
[1753494928102,0.75629091,117340.0,117330.0,0.16867822]
[1753494928303,0.74079091,117340.0,117330.0,0.16867822]
[1753494929628,0.74071091,117340.0,117330.0,0.16867822]
[1753494933034,0.74071091,117340.0,117330.0,0.16652822]
[1753494934613,0.75651091,117340.0,117330.0,0.16652822]
[1753494934801,0.47112642,117340.0,117330.0,0.16652822]
[1753494934980,0.75651091,117340.0,117330.0,0.16652822]
[1753494935179,0.47112642,117340.0,117330.0,0.16652822]
[1753494935607,0.75651091,117340.0,117330.0,0.16652822]
[1753494939198,0.47112642,117340.0,117330.0,0.16652822]
[1753494939562,0.75651091,117340.0,117330.0,0.16652822]
[1753494946936,0.47112642,117340.0,117330.0,0.16652822]
[1753494947147,0.75651091,117340.0,117330.0,0.16652822]
[1753494950120,0.67141861,117340.0,117330.0,0.16652822]
[1753494960024,0.38603412,117340.0,117330.0,0.16652822]
[1753494960479,0.67141861,117340.0,117330.0,0.16652822]
[1753494961249,0.38603412,117340.0,117330.0,0.16652822]
[1753494961388,0.67141861,117340.0,117330.0,0.16652822]
[1753494961619,0.54073861,117340.0,117330.0,0.16652822]
[1753494961866,0.72039721,117340.0,117330.0,0.16652822]
[1753494964566,1.06039721,117340.0,117330.0,0.16652822]
[1753494964793,0.20979746,117320.0,117310.0,0.11009367]
[1753494965020,0.20979746,117320.0,117310.0,0.11057805]
[1753494965021,0.51185279,117320.0,117310.0,0.11057805]
[1753494965238,0.53971279,117320.0,117310.0,0.11057805]
[1753494965474,0.5943283,117320.0,117310.0,0.11057805]
[1753494965989,0.5943283,117320.0,117310.0,0.11157805]
[1753494965990,0.95571279,117320.0,117310.0,0.11157805]
[1753494966241,0.68777732,117320.0,117310.0,0.11457805]
[1753494966482,0.96716181,117320.0,117310.0,0.11357805]
[1753494966733,0.68877732,117320.0,117310.0,0.11457805]
[1753494966994,0.97416181,117320.0,117310.0,0.11457805]
[1753494967225,0.68177732,117320.0,117310.0,0.11357805]
[1753494967489,0.96716181,117320.0,117310.0,0.11357805]
[1753494967715,0.68177732,117320.0,117310.0,0.11357805]
[1753494967961,0.68177732,117320.0,117310.0,0.11057805]
[1753494968192,1.10856181,117320.0,117310.0,0.11057805]
[1753494968641,0.83217732,117320.0,117310.0,0.11157805]
[1753494968859,1.11756181,117320.0,117310.0,0.11157805]
[1753494969465,1.11956181,117320.0,117310.0,0.11157805]
[1753494971749,0.83417732,117320.0,117310.0,0.11157805]
[1753494971880,1.11956181,117320.0,117310.0,0.11157805]
[1753494972381,0.83417732,117320.0,117310.0,0.11157805]
[1753494972655,1.11956181,117320.0,117310.0,0.11157805]
[1753494974447,0.83417732,117320.0,117310.0,0.11157805]
[1753494974684,1.11956181,117320.0,117310.0,0.11157805]
[1753494983645,0.83417732,117320.0,117310.0,0.11157805]
[1753494983884,1.11956181,117320.0,117310.0,0.11157805]
[1753494985858,0.83417732,117320.0,117310.0,0.11157805]
[1753494986076,1.11956181,117320.0,117310.0,0.11157805]
[1753494989217,1.14511584,117320.0,117310.0,0.11157805]
[1753494989861,0.85973135,117320.0,117310.0,0.11157805]
[1753494990072,1.14511584,117320.0,117310.0,0.11157805]
[1753494995886,0.85973135,117320.0,117310.0,0.11157805]
[1753494996141,1.14511584,117320.0,117310.0,0.11157805]